bitfinex/quotes_BTCUSD_20250331
["timestamp","ask_amount","ask_price","bid_price","bid_amount"]
[1743447822396,0.011981,83459.0,83455.0,0.239649]
[1743447822603,0.251621,83459.0,83455.0,0.239649]
[1743447823009,0.251621,83459.0,83450.0,0.011983]
[1743447823010,0.011982,83456.0,83450.0,0.251646]
[1743447823211,0.251632,83455.0,83450.0,0.01454085]
[1743447823415,0.239659,83452.0,83450.0,0.01454085]
[1743447823598,0.011982,83456.0,83450.0,0.25420485]
[1743447823599,0.251629,83456.0,83450.0,0.25420485]
[1743447823843,0.251629,83456.0,83452.0,0.239656]
[1743447823998,0.239647,83456.0,83452.0,0.239656]
[1743447824193,0.239647,83456.0,83453.0,0.239655]
[1743447824397,0.239647,83456.0,83452.0,0.239658]
[1743447825525,0.239648,83456.0,83451.0,0.251644]
[1743447825723,0.239648,83456.0,83452.0,0.240656]
[1743447826057,0.239652,83455.0,83452.0,0.001]
[1743447826274,0.239655,83454.0,83452.0,0.001]
[1743447827109,0.239655,83454.0,83451.0,0.239661]
[1743447827332,0.239655,83454.0,83452.0,0.001]
[1743447827509,0.239656,83453.0,83451.0,0.001]
[1743447827924,0.239658,83452.0,83450.0,0.01454085]
[1743447828127,0.239661,83451.0,83450.0,0.01454085]
[1743447828325,0.011982,83453.0,83451.0,0.002]
[1743447828518,0.239655,83454.0,83451.0,0.002]
[1743447828760,0.239658,83452.0,83450.0,0.01454085]
[1743447828961,0.239658,83452.0,83447.0,0.239672]
[1743447829168,0.239647,83456.0,83451.0,0.011983]
[1743447829366,0.011982,83456.0,83451.0,0.002]
[1743447829585,0.239658,83452.0,83451.0,0.002]
[1743447829767,0.25164,83452.0,83450.0,0.002]
[1743447829972,0.239661,83451.0,83450.0,0.004]
[1743447830263,0.251644,83451.0,83450.0,0.002]
[1743447830468,0.239667,83449.0,83446.0,0.251658]
[1743447830685,0.239667,83449.0,83447.0,0.002]
[1743447831242,0.011984,83438.0,83427.0,0.1295]
[1743447831445,0.239706,83436.0,83432.0,0.239713]
[1743447831776,0.70066675,83444.0,83437.0,0.2397]
[1743447831981,0.239685,83443.0,83438.0,0.011984]
[1743447832187,0.44899875,83444.0,83443.0,0.25422485]
[1743447832389,0.4098994,83452.0,83448.0,0.239668]
[1743447832598,0.4098994,83452.0,83450.0,0.239662]
[1743447832816,0.4098994,83452.0,83451.0,0.0001685]
[1743447832975,0.68865475,83453.0,83451.0,0.0001685]
[1743447833630,0.25164,83452.0,83451.0,0.0001685]
[1743447834605,0.25164,83452.0,83451.0,0.0021685]
[1743447835165,0.25164,83452.0,83451.0,0.0001685]
[1743447835365,0.25164,83452.0,83451.0,0.0021685]
[1743447835599,0.25164,83452.0,83451.0,0.0041685]
[1743447840348,0.000337,83456.0,83455.0,0.251632]
[1743447840503,0.000337,83456.0,83451.0,0.0041685]
[1743447840702,0.000337,83456.0,83454.0,0.239652]
[1743447841131,0.000337,83456.0,83455.0,0.23965]
[1743447841332,0.000337,83456.0,83455.0,0.251632]
[1743447841733,0.5389116,83461.0,83456.0,0.239642]
[1743447841734,0.239641,83459.0,83456.0,0.239642]
[1743447841935,0.239641,83459.0,83452.0,0.011982]
[1743447841936,0.239658,83452.0,83445.0,0.239676]
[1743447842182,0.239658,83452.0,83451.0,0.0001685]
[1743447842387,0.239658,83453.0,83451.0,0.0001685]
[1743447842595,0.251617,83460.0,83454.0,0.011982]
[1743447842797,0.251617,83460.0,83453.0,0.011982]
[1743447842798,0.251623,83458.0,83453.0,0.011982]
[1743447842968,0.239641,83458.0,83454.0,0.23965]
[1743447843180,0.239658,83452.0,83451.0,0.0021685]
[1743447843758,0.251628,83457.0,83452.0,0.239656]
[1743447843927,0.251628,83457.0,83453.0,0.239653]
[1743447844511,0.251628,83457.0,83451.0,0.0021685]
[1743447844512,0.251632,83455.0,83454.0,0.001]
[1743447844838,0.251632,83455.0,83451.0,0.0021685]
[1743447844839,0.25164,83452.0,83451.0,0.0021685]
[1743447845044,0.25164,83452.0,83451.0,0.0001685]
[1743447845445,0.25164,83452.0,83451.0,0.0021685]
[1743447845647,0.25164,83452.0,83451.0,0.0001685]
[1743447846116,0.25164,83452.0,83451.0,0.0021685]
[1743447847150,0.25164,83452.0,83451.0,0.0041685]
[1743447848958,0.71944386,83452.0,83451.0,0.0041685]
[1743447849819,0.71944386,83452.0,83451.0,0.0001685]
[1743447850004,0.55164,83452.0,83451.0,0.0001685]
[1743447851568,0.67424386,83452.0,83451.0,0.0001685]
[1743447853279,0.67524386,83452.0,83451.0,0.0001685]
[1743447854207,0.67624386,83452.0,83451.0,0.0001685]
[1743447854442,0.80207478,83452.0,83451.0,0.0001685]
[1743447856068,0.67947092,83452.0,83451.0,0.0001685]
[1743447858382,0.12783092,83452.0,83451.0,0.0001685]
[1743447858552,0.36748892,83452.0,83451.0,0.0001685]
[1743447859033,0.12783092,83452.0,83451.0,0.0001685]
[1743447859419,0.12783092,83452.0,83451.0,0.2398295]
[1743447859621,0.002,83452.0,83451.0,0.2518125]
[1743447859864,0.001,83452.0,83451.0,0.2518125]
[1743447860074,0.000337,83457.0,83456.0,0.251629]
[1743447860275,0.000337,83457.0,83456.0,0.43527371]
[1743447860488,0.000337,83457.0,83456.0,0.51737371]
[1743447862550,0.000337,83457.0,83456.0,0.52037371]
[1743447862752,0.000337,83457.0,83456.0,0.52437371]
[1743447862955,0.251963,83457.0,83456.0,0.007]
[1743447865481,0.45012026,83457.0,83456.0,0.007]
[1743447865662,0.37456686,83457.0,83456.0,0.007]
[1743447866362,0.37456686,83457.0,83456.0,0.004]
[1743447866625,0.25164,83452.0,83451.0,0.0001685]
[1743447868362,0.25164,83452.0,83451.0,0.0031685]
[1743447868512,0.25164,83452.0,83451.0,0.0001685]
[1743447869102,0.251692,83435.0,83434.0,0.00030768]
[1743447870514,0.37429586,83435.0,83434.0,0.00030768]
[1743447870719,0.37429586,83435.0,83434.0,0.00130768]
[1743447870917,0.67429586,83435.0,83434.0,0.00130768]
[1743447871323,0.67429586,83435.0,83434.0,0.00230768]
[1743447871522,0.80012678,83435.0,83434.0,6.8e-07]
[1743447871731,0.84752678,83435.0,83434.0,6.8e-07]
[1743447871931,0.251532,83422.0,83421.0,8e-07]
[1743447873139,0.251532,83422.0,83421.0,0.0020008]
[1743447873566,0.2703018,83422.0,83421.0,0.0020008]
[1743447875125,0.2703018,83422.0,83421.0,0.0040008]
[1743447876041,0.2703018,83422.0,83421.0,8e-07]
[1743447876342,0.2703018,83422.0,83421.0,0.0020008]
[1743447877949,0.251532,83422.0,83421.0,0.0020008]
[1743447878355,0.251372,83422.0,83421.0,0.0020008]
[1743447880359,0.251731,83422.0,83421.0,0.0020008]
[1743447891043,0.239743,83423.0,83421.0,0.0020008]
[1743447891246,0.37755592,83424.0,83421.0,0.0020008]
[1743447891247,0.12583092,83424.0,83422.0,0.239744]
[1743447891487,0.239742,83423.0,83421.0,0.0512008]
[1743447892065,0.239742,83423.0,83421.0,0.0492008]
[1743447892268,0.251731,83422.0,83421.0,0.0492008]
[1743447892890,0.239744,83422.0,83421.0,0.0492008]
[1743447893484,0.239744,83422.0,83421.0,0.0502008]
[1743447893888,0.239744,83422.0,83421.0,0.0512008]
[1743447894749,0.240081,83422.0,83421.0,0.0512008]
[1743447895137,0.252068,83422.0,83421.0,0.0512008]
[1743447895771,0.000337,83422.0,83421.0,0.3029348]
[1743447895950,0.000337,83422.0,83421.0,0.39597565]
[1743447896890,0.000337,83422.0,83421.0,0.14424165]
[1743447897070,0.252068,83422.0,83421.0,0.0020008]
[1743447900468,0.240081,83422.0,83421.0,0.0020008]
[1743447900674,0.252068,83422.0,83421.0,0.0020008]
[1743447903568,0.000337,83422.0,83421.0,0.0020008]
[1743447903899,0.012324,83422.0,83421.0,0.0020008]
[1743447904195,0.252068,83422.0,83421.0,0.0020008]
[1743447905907,0.000337,83422.0,83421.0,0.2537348]
[1743447906138,0.000337,83422.0,83421.0,0.3369348]
[1743447906312,0.000337,83422.0,83421.0,0.39797565]
[1743447907764,0.000337,83422.0,83421.0,0.52057951]
[1743447908628,0.000337,83422.0,83421.0,0.14624165]
[1743447908979,0.000337,83422.0,83421.0,0.0010008]
[1743447909192,0.000337,83422.0,83421.0,0.2417478]
[1743447909414,0.000337,83422.0,83421.0,0.0020008]
[1743447909602,0.000337,83422.0,83421.0,0.0010008]
[1743447909828,0.000337,83422.0,83421.0,0.2407478]
[1743447910100,0.000337,83422.0,83421.0,0.2427478]
[1743447910320,0.252068,83422.0,83421.0,0.0030008]
[1743447911908,0.000337,83422.0,83421.0,0.2427478]
[1743447912116,0.000337,83422.0,83421.0,0.26927565]
[1743447912316,0.23974,83424.0,83422.0,0.01454085]
[1743447912517,0.239744,83422.0,83421.0,0.0030008]
[1743447912741,0.251731,83422.0,83421.0,0.0030008]
[1743447913287,0.251731,83422.0,83421.0,0.0010008]
[1743447913806,0.01876846,83429.0,83421.0,0.0010008]
[1743447914007,0.01876846,83429.0,83428.0,0.239727]
[1743447914208,0.011984,83438.0,83426.0,0.011986]
[1743447914409,0.5389996,83432.0,83427.0,0.239729]
[1743447914633,0.239719,83431.0,83427.0,0.239729]
[1743447915024,0.239719,83431.0,83426.0,0.251716]
[1743447915230,0.239722,83430.0,83426.0,0.23973]
[1743447915431,0.239744,83422.0,83421.0,8e-07]
[1743447915907,0.251725,83424.0,83421.0,8e-07]
[1743447916082,0.239742,83423.0,83421.0,8e-07]
[1743447916643,0.251725,83424.0,83421.0,8e-07]
[1743447916846,0.239742,83423.0,83421.0,8e-07]
[1743447917246,0.239742,83423.0,83421.0,0.0010008]
[1743447917460,0.239731,83427.0,83421.0,0.0010008]
[1743447917669,0.239736,83425.0,83422.0,0.239744]
[1743447917911,0.011987,83423.0,83421.0,0.0010008]
[1743447918069,0.25472769,83422.0,83421.0,0.0010008]
[1743447918275,0.251731,83422.0,83421.0,0.0010008]
[1743447918477,0.251731,83422.0,83421.0,8e-07]
[1743447919158,0.252068,83422.0,83421.0,8e-07]
[1743447919548,0.252068,83422.0,83421.0,0.0010008]
[1743447921148,0.252068,83422.0,83421.0,0.0030008]
[1743447922173,0.27083714,83422.0,83421.0,0.0030008]
[1743447927316,0.27083714,83422.0,83421.0,0.0010008]
[1743447928042,0.252068,83422.0,83421.0,0.0010008]
[1743447928441,0.252068,83422.0,83421.0,8e-07]
[1743447933700,0.252068,83422.0,83421.0,0.2397478]
[1743447933701,0.000337,83422.0,83421.0,0.2397478]
[1743447933998,0.000337,83422.0,83421.0,0.25450313]
[1743447934209,0.000337,83422.0,83421.0,0.34359013]
[1743447935066,0.000337,83422.0,83421.0,0.48073484]
[1743447935482,0.000337,83422.0,83421.0,0.52633484]
[1743447936212,0.000337,83422.0,83421.0,0.52933484]
[1743447936388,0.000337,83422.0,83421.0,0.53333484]
[1743447936589,0.000337,83422.0,83421.0,0.53033484]
[1743447937210,0.000337,83422.0,83421.0,0.53533484]
[1743447938972,0.000337,83422.0,83421.0,0.52633484]
[1743447939474,0.001337,83422.0,83421.0,1.03733484]
[1743447939735,0.000337,83422.0,83421.0,1.03233484]
[1743447939931,0.001337,83422.0,83421.0,1.03133484]
[1743447940383,0.000337,83428.0,83427.0,0.39435685]
[1743447940584,0.000337,83428.0,83427.0,0.65440071]
[1743447940756,0.000337,83428.0,83427.0,0.66912727]
[1743447942012,0.000337,83428.0,83427.0,1.16912727]
[1743447942256,0.000337,83428.0,83427.0,1.17312727]
[1743447942462,0.000337,83428.0,83427.0,1.17512727]
[1743447942864,0.000337,83428.0,83427.0,1.18112727]
[1743447943972,0.000337,83428.0,83427.0,1.04368727]
[1743447944254,0.000337,83428.0,83427.0,1.18112727]
[1743447945154,0.000337,83428.0,83427.0,1.45968727]
[1743447945530,0.000337,83428.0,83427.0,1.59712727]
[1743447946151,0.000337,83428.0,83427.0,1.09712727]
[1743447951052,0.000337,83428.0,83427.0,1.39712727]
[1743447953191,0.000337,83428.0,83427.0,1.89712727]
[1743447953791,1.3e-07,83435.0,83434.0,0.69473585]
[1743447953994,1.3e-07,83435.0,83434.0,0.83120688]
[1743447954199,1.3e-07,83435.0,83434.0,1.24720688]
[1743447954861,1.3e-07,83435.0,83434.0,1.74720688]
[1743447955071,1.3e-07,83435.0,83434.0,1.75920688]
[1743447957458,1.3e-07,83435.0,83434.0,1.88206603]
[1743447957660,1.3e-07,83435.0,83434.0,1.80336603]
[1743447958091,1.3e-07,83435.0,83434.0,1.30336603]
[1743447958685,1.3e-07,83435.0,83434.0,1.29736603]
[1743447959026,1.3e-07,83435.0,83434.0,1.31790688]
[1743447959410,1.3e-07,83435.0,83434.0,1.31190688]
[1743447959748,1.3e-07,83435.0,83434.0,1.31790688]
[1743447960577,1.3e-07,83435.0,83434.0,1.26810688]
[1743447961556,1.3e-07,83435.0,83434.0,1.13070688]
[1743447961756,1.3e-07,83435.0,83434.0,1.26810688]
[1743447963226,1.3e-07,83435.0,83434.0,1.26806688]
[1743447967901,1.3e-07,83435.0,83434.0,0.57934888]
[1743447968166,1.3e-07,83435.0,83434.0,0.83104388]
[1743447968648,1.3e-07,83435.0,83434.0,0.41504388]
[1743447968888,1.3e-07,83435.0,83434.0,0.40904388]
[1743447969114,1.3e-07,83435.0,83434.0,0.40304388]
[1743447969602,1.3e-07,83435.0,83434.0,0.40804388]
[1743447970766,1.3e-07,83435.0,83434.0,0.84314388]
[1743447971647,1.3e-07,83435.0,83434.0,1.33714388]
[1743447972061,1.3e-07,83435.0,83434.0,1.34314388]
[1743447972271,1.3e-07,83435.0,83434.0,1.33814388]
[1743447972739,1.3e-07,83435.0,83434.0,1.33214388]
[1743447973115,1.3e-07,83435.0,83434.0,1.78548513]
[1743447973320,1.3e-07,83435.0,83434.0,1.79748513]
[1743447973679,1.3e-07,83435.0,83434.0,2.19748513]
[1743447974169,1.3e-07,83435.0,83434.0,2.19148513]
[1743447974520,1.3e-07,83435.0,83434.0,2.18548513]
[1743447975103,1.3e-07,83435.0,83434.0,2.19148513]
[1743447975499,1.3e-07,83435.0,83434.0,2.18548513]
[1743447975740,1.3e-07,83435.0,83434.0,2.19148513]
[1743447976371,1.3e-07,83435.0,83434.0,2.19748513]
[1743447977186,1.3e-07,83435.0,83434.0,2.19148513]
[1743447977390,0.000337,83460.0,83437.0,0.41599987]
[1743447977595,0.00038351,83457.0,83456.0,0.44912671]
[1743447977785,0.00038351,83457.0,83456.0,1.25589951]
[1743447979522,0.00038351,83457.0,83456.0,1.26489951]
[1743447979946,0.00038351,83457.0,83456.0,1.25589951]
[1743447980183,0.00038351,83457.0,83456.0,1.26089951]
[1743447980365,0.00038351,83457.0,83456.0,1.26589951]
[1743447981553,0.00038351,83457.0,83456.0,1.26085951]
[1743447981956,0.00038351,83457.0,83456.0,1.76185951]
[1743447982111,0.00038351,83457.0,83456.0,1.76785951]
[1743447982311,0.00038351,83457.0,83456.0,1.76185951]
[1743447982754,0.00038351,83457.0,83456.0,1.76785951]
[1743447983181,0.00038351,83457.0,83456.0,1.26785951]
[1743447985958,0.00038351,83457.0,83456.0,1.13053951]
[1743447986164,0.00038351,83457.0,83456.0,1.26785951]
[1743447990248,5.1e-07,83460.0,83459.0,0.551619]
[1743447990458,0.0003372,83473.0,83459.0,0.551619]
[1743447990459,7.1e-07,83467.0,83466.0,0.61153885]
[1743447990657,4.72e-05,83467.0,83466.0,0.81404271]
[1743447990789,4.72e-05,83467.0,83466.0,0.82776038]
[1743447991395,2e-07,83467.0,83466.0,0.82776038]
[1743447991806,2e-07,83467.0,83466.0,1.33376038]
[1743447992010,4e-07,83473.0,83472.0,0.251581]
[1743447992208,4e-07,83473.0,83472.0,0.60504571]
[1743447992418,4e-07,83473.0,83472.0,0.61873555]
[1743447992882,4e-07,83473.0,83472.0,1.33473542]
[1743447993431,4e-07,83473.0,83472.0,1.84073542]
[1743447994397,4e-07,83473.0,83472.0,1.88633542]
[1743447994597,4e-07,83473.0,83472.0,1.88033542]
[1743447994800,4e-07,83473.0,83472.0,2.28633542]
[1743447995001,4e-07,83473.0,83472.0,2.29233542]
[1743447995431,0.00045377,83495.0,83491.0,0.551523]
[1743447995606,0.00045377,83495.0,83491.0,1.98932758]
[1743447995802,0.00045377,83495.0,83491.0,2.00293067]
[1743447996777,0.00045377,83495.0,83491.0,2.00793067]
[1743447996956,0.00045377,83495.0,83491.0,2.50793067]
[1743447997662,0.00045377,83495.0,83491.0,2.51393067]
[1743447998081,0.00045377,83495.0,83491.0,2.50293067]
[1743447998277,0.00045377,83495.0,83491.0,2.50893067]
[1743447998477,0.00045377,83495.0,83491.0,2.51493067]
[1743447998881,0.00045377,83495.0,83491.0,2.38943067]
[1743447999982,3e-07,83495.0,83494.0,0.239538]
[1743448000183,0.00013982,83495.0,83494.0,0.43645871]
[1743448000377,0.00013982,83495.0,83494.0,0.45004745]
[1743448000617,0.00013982,83495.0,83494.0,1.15004745]
[1743448000814,0.00013982,83495.0,83494.0,1.65004745]
[1743448000973,0.00013982,83495.0,83494.0,1.78732745]
[1743448001375,0.00013982,83495.0,83494.0,1.79332745]
[1743448001594,0.00013982,83495.0,83494.0,1.79932745]
[1743448001807,0.00013982,83495.0,83494.0,1.79332745]
[1743448002405,0.00013982,83495.0,83494.0,1.79932745]
[1743448003817,0.00013982,83495.0,83494.0,2.21532732]
[1743448004380,0.00013982,83495.0,83494.0,2.20932732]
[1743448004583,0.00030822,83495.0,83494.0,2.21532732]
[1743448004943,0.00030822,83495.0,83494.0,2.20932732]
[1743448005762,0.00030822,83495.0,83494.0,2.21532732]
[1743448005958,0.00030822,83495.0,83494.0,2.07804732]
[1743448006187,0.00030822,83495.0,83494.0,2.21528732]
[1743448006755,0.00030822,83495.0,83494.0,2.22725853]
[1743448007684,5e-08,83505.0,83503.0,0.3]
[1743448007898,4.7e-07,83508.0,83505.0,0.56602185]
[1743448008082,4.5e-07,83519.0,83518.0,0.551442]
[1743448008317,4.5e-07,83519.0,83518.0,1.24178658]
[1743448008520,4.5e-07,83519.0,83518.0,1.25526327]
[1743448009131,4.5e-07,83519.0,83518.0,1.75526327]
[1743448010363,0.00046541,83519.0,83518.0,1.75526327]
[1743448010619,0.00046541,83519.0,83518.0,1.61806327]
[1743448010817,0.00046541,83519.0,83518.0,1.75526327]
[1743448011026,0.00046541,83519.0,83518.0,1.76126327]
[1743448011181,0.00046541,83519.0,83518.0,2.38286327]
[1743448011380,0.00046541,83519.0,83518.0,2.38886327]
[1743448013211,0.00095047,83531.0,83518.0,2.38886327]
[1743448013212,0.18448361,83540.0,83539.0,0.251379]
[1743448013332,0.24067393,83543.0,83540.0,0.239406]
[1743448013546,0.00175885,83541.0,83540.0,0.38992791]
[1743448013751,0.24116185,83541.0,83540.0,0.15052191]
[1743448014550,0.25313185,83541.0,83540.0,0.15252191]
[1743448015341,0.25313185,83541.0,83540.0,0.0153772]
[1743448015688,0.25313185,83541.0,83540.0,0.002]
[1743448016241,0.37783185,83541.0,83540.0,0.002]
[1743448016441,0.37783185,83541.0,83540.0,0.01537621]
[1743448016644,0.37783185,83541.0,83540.0,0.002]
[1743448016863,0.37783185,83541.0,83540.0,0.01537621]
[1743448019819,0.36586185,83541.0,83540.0,0.01537621]
[1743448022835,0.12645885,83541.0,83540.0,0.01537621]
[1743448023040,0.00175885,83541.0,83540.0,0.25478221]
[1743448023278,0.00175885,83541.0,83540.0,0.39192692]
[1743448023474,0.00175885,83541.0,83540.0,0.40389692]
[1743448025257,0.01372885,83541.0,83540.0,0.01537621]
[1743448025424,0.25313185,83541.0,83540.0,0.01537621]
[1743448025690,0.37543185,83541.0,83540.0,0.002]
[1743448026436,0.011973,83516.0,83509.0,0.13716]
[1743448026628,0.239483,83513.0,83512.0,0.01454085]
[1743448026751,0.011974,83511.0,83509.0,0.13716]
[1743448026955,0.239483,83515.0,83508.0,0.02651485]
[1743448027155,0.314769,83518.0,83514.0,0.239479]
[1743448027362,0.239473,83517.0,83514.0,0.239479]
[1743448027563,0.314769,83518.0,83513.0,0.011974]
[1743448027564,0.0753,83518.0,83515.0,0.239476]
[1743448027795,0.2992786,83520.0,83519.0,0.251439]
[1743448027996,7.241e-05,83520.0,83519.0,0.251439]
[1743448029506,7.241e-05,83520.0,83519.0,0.38858371]
[1743448030333,7.241e-05,83520.0,83519.0,0.39158371]
[1743448030860,7.241e-05,83520.0,83519.0,0.40101392]
[1743448031520,0.25150841,83520.0,83519.0,0.01243021]
[1743448031850,0.25150841,83520.0,83519.0,0.003]
[1743448032057,0.25150841,83520.0,83519.0,0.01243021]
[1743448032255,7.241e-05,83520.0,83519.0,0.003]
[1743448032463,0.25150841,83520.0,83519.0,0.003]
[1743448032782,0.25150841,83520.0,83519.0,0.01243021]
[1743448032990,0.25150841,83520.0,83519.0,0.003]
[1743448033421,0.25150841,83520.0,83519.0,0.01243021]
[1743448033617,0.32860841,83520.0,83519.0,0.003]
[1743448033815,0.37370841,83520.0,83519.0,0.003]
[1743448034600,0.37370841,83520.0,83519.0,0.002]
[1743448034808,0.37470841,83520.0,83519.0,0.002]
[1743448035004,0.49731227,83520.0,83519.0,0.002]
[1743448035408,0.251511,83495.0,83484.0,0.41599987]
[1743448035626,0.251511,83495.0,83475.0,0.149139]
[1743448035836,0.251511,83495.0,83482.0,0.239571]
[1743448036041,0.251511,83495.0,83480.0,0.01454085]
[1743448036250,0.251511,83495.0,83480.0,0.239578]
[1743448036606,0.251511,83495.0,83494.0,0.0063366]
[1743448037170,0.251511,83495.0,83494.0,0.0023366]
[1743448037583,0.251511,83495.0,83494.0,0.0043366]
[1743448038804,0.251511,83495.0,83494.0,0.0023366]
[1743448039000,0.37734192,83495.0,83494.0,0.0033366]
[1743448039430,1.00274964,83495.0,83494.0,6e-07]
[1743448039689,0.251595,83467.0,83466.0,0.0003368]
[1743448040456,0.251595,83467.0,83466.0,0.01000706]
[1743448040900,0.251595,83467.0,83466.0,0.01047202]
[1743448041489,0.251595,83467.0,83466.0,0.01247202]
[1743448041688,0.251595,83467.0,83466.0,0.00280176]
[1743448042465,0.0802,83471.0,83466.0,0.00280176]
[1743448042664,0.239615,83467.0,83466.0,0.00080176]
[1743448042863,0.239615,83467.0,83466.0,0.00380176]
[1743448043065,0.251595,83467.0,83466.0,0.00480176]
[1743448043295,0.251595,83467.0,83466.0,0.00380176]
[1743448043501,0.251595,83467.0,83466.0,0.00080176]
[1743448043722,0.03073673,83475.0,83466.0,0.00080176]
[1743448043909,0.239612,83468.0,83466.0,0.00080176]
[1743448044117,0.0149753,83467.0,83466.0,0.00080176]
[1743448044476,0.0149753,83467.0,83466.0,0.00180176]
[1743448044686,0.0149753,83467.0,83466.0,0.00280176]
[1743448045912,0.01198,83467.0,83466.0,0.00280176]
[1743448046129,0.01198,83467.0,83466.0,0.00180176]
[1743448046509,0.01198,83467.0,83466.0,0.00080176]
[1743448047548,0.01497566,83467.0,83466.0,0.00080176]
[1743448047746,0.01198,83467.0,83466.0,0.00080176]
[1743448048088,0.01497564,83467.0,83466.0,0.00080176]
[1743448048285,0.01198,83467.0,83466.0,0.00080176]
[1743448048589,0.25459066,83467.0,83466.0,0.00080176]
[1743448048793,0.330895,83467.0,83466.0,0.00080176]
[1743448049754,0.251595,83467.0,83466.0,0.00080176]
[1743448050941,0.3,83469.0,83466.0,0.24041876]
[1743448050942,0.239612,83469.0,83466.0,0.24041876]
[1743448051149,0.239614,83468.0,83466.0,0.00080176]
[1743448051351,0.251594,83468.0,83467.0,0.00966702]
[1743448051952,0.239604,83471.0,83467.0,0.24928202]
[1743448052154,0.239604,83471.0,83468.0,0.239612]
[1743448052358,0.01198,83471.0,83467.0,0.00966702]
[1743448052721,0.239612,83468.0,83466.0,0.00080176]
[1743448052871,0.251595,83467.0,83466.0,0.00080176]
[1743448055058,0.4291289,83467.0,83466.0,0.00080176]
[1743448055213,0.327295,83467.0,83466.0,0.00080176]
[1743448055395,0.34605488,83467.0,83466.0,0.00080176]
[1743448058040,0.327295,83467.0,83466.0,0.00080176]
[1743448058269,0.251595,83467.0,83466.0,0.00080176]
[1743448059428,0.62112978,83467.0,83466.0,0.00080176]
[1743448060045,1.04373364,83467.0,83466.0,7.6e-07]
[1743448060255,0.92112978,83467.0,83466.0,7.6e-07]
[1743448060458,0.92312978,83467.0,83466.0,7.6e-07]
[1743448061100,0.94189122,83467.0,83466.0,7.6e-07]
[1743448061753,0.93989122,83467.0,83466.0,7.6e-07]
[1743448061955,0.94189122,83467.0,83466.0,7.6e-07]
[1743448062160,0.94389122,83467.0,83466.0,7.6e-07]
[1743448062568,0.94789122,83467.0,83466.0,7.6e-07]
[1743448063254,1.07049508,83467.0,83466.0,7.6e-07]
[1743448065207,0.628126,83457.0,83456.0,5.6e-07]
[1743448065369,0.87656078,83457.0,83456.0,0.00014008]
[1743448065979,0.89532344,83457.0,83456.0,0.00014008]
[1743448066567,0.89732344,83457.0,83456.0,0.00014008]
[1743448067031,0.90412644,83457.0,83456.0,0.00014008]
[1743448067665,0.62766966,83457.0,83456.0,0.00014008]
[1743448067866,0.860533,83457.0,83456.0,0.00014008]
[1743448070842,0.92294547,83457.0,83456.0,0.00014008]
[1743448071484,0.68019125,83457.0,83456.0,0.00014008]
[1743448074144,0.80279511,83457.0,83456.0,0.00014008]
[1743448075888,0.80279511,83457.0,83451.0,0.002]
[1743448075889,0.55164,83452.0,83451.0,8e-08]
[1743448076079,0.67424386,83452.0,83451.0,4.657e-05]
[1743448076659,0.80007478,83452.0,83451.0,5.7e-07]
[1743448079208,0.80307478,83452.0,83451.0,5.7e-07]
[1743448079417,0.80507478,83452.0,83451.0,5.7e-07]
[1743448081787,0.94235478,83452.0,83451.0,5.7e-07]
[1743448083373,0.68247092,83452.0,83451.0,5.7e-07]
[1743448083573,0.005,83452.0,83451.0,5.7e-07]
[1743448083827,0.244658,83452.0,83451.0,0.08260057]
[1743448084066,0.25664,83452.0,83451.0,0.09234226]
[1743448084274,0.25664,83452.0,83451.0,0.08260057]
[1743448084658,0.25664,83452.0,83451.0,5.7e-07]
[1743448085835,0.005,83452.0,83451.0,0.23966157]
[1743448086081,0.25664,83452.0,83451.0,0.00974226]
[1743448087593,0.25664,83452.0,83451.0,5.7e-07]
[1743448089025,0.25664,83452.0,83451.0,0.00974226]
[1743448089219,0.25664,83452.0,83451.0,5.7e-07]
[1743448089420,0.005,83452.0,83451.0,0.00974226]
[1743448089621,0.22808487,83453.0,83451.0,5.7e-07]
[1743448089850,0.239658,83452.0,83451.0,0.00974226]
[1743448090066,0.239658,83452.0,83451.0,0.01007926]
[1743448090241,0.0001685,83452.0,83451.0,0.01007926]
[1743448090550,0.2398265,83452.0,83451.0,0.01007926]
[1743448090977,0.0001685,83452.0,83451.0,0.26172326]
[1743448091182,0.0001685,83452.0,83451.0,0.34482326]
[1743448091741,0.0031685,83452.0,83451.0,0.34482326]
[1743448091947,0.2428265,83452.0,83451.0,0.09317926]
[1743448092148,0.0001685,83452.0,83451.0,0.09317926]
[1743448092343,0.2408265,83452.0,83451.0,0.09317926]
[1743448092568,0.2528085,83452.0,83451.0,0.09317926]
[1743448092778,0.2408265,83452.0,83451.0,0.09317926]
[1743448093176,0.2528085,83452.0,83451.0,0.09317926]
[1743448093377,0.2528085,83452.0,83451.0,0.08343757]
[1743448094372,0.2528085,83452.0,83451.0,0.09317906]
[1743448095211,0.2528085,83452.0,83451.0,0.01007906]
[1743448095452,0.2528085,83452.0,83451.0,0.00033757]
[1743448096606,0.37541236,83452.0,83451.0,0.00033757]
[1743448096805,0.39417443,83452.0,83451.0,0.00033757]
[1743448097648,0.27157057,83452.0,83451.0,0.00033757]
[1743448098004,0.2528085,83452.0,83451.0,0.00033757]
[1743448104912,0.2528085,83452.0,83451.0,0.04913757]
[1743448106569,0.2528085,83452.0,83451.0,0.00033757]
[1743448109174,0.2528085,83452.0,83451.0,0.01007921]
[1743448109175,0.0011685,83452.0,83451.0,0.01007921]
[1743448109395,0.2408265,83452.0,83451.0,0.08183757]
[1743448109603,0.2408265,83452.0,83451.0,0.09157921]
[1743448110053,0.2528085,83452.0,83451.0,0.09157921]
[1743448110222,0.0011685,83452.0,83451.0,0.09157921]
[1743448110424,0.0011685,83452.0,83451.0,0.38862321]
[1743448111498,0.2408265,83452.0,83451.0,0.13697921]
[1743448111737,0.2528085,83452.0,83451.0,0.13697921]
[1743448112689,0.2408265,83452.0,83451.0,0.13697921]
[1743448112887,0.0011685,83452.0,83451.0,0.13697921]
[1743448113356,0.2528085,83452.0,83451.0,0.13697921]
[1743448114781,0.2528085,83452.0,83451.0,0.12723757]
[1743448114995,0.2528085,83452.0,83451.0,0.00033757]
[1743448117141,0.37541236,83452.0,83451.0,5.7e-07]
[1743448120618,0.10206951,83452.0,83451.0,5.7e-07]
[1743448120791,0.13281449,83452.0,83451.0,5.7e-07]
[1743448120991,0.37247249,83452.0,83451.0,5.7e-07]
[1743448121224,0.49830341,83452.0,83451.0,5.7e-07]
[1743448121338,0.3962339,83452.0,83451.0,5.7e-07]
[1743448126793,0.3964024,83452.0,83451.0,5.7e-07]
[1743448127045,0.27057148,83452.0,83451.0,5.7e-07]
[1743448127784,0.27033487,83452.0,83451.0,5.7e-07]
[1743448130068,0.47093873,83452.0,83451.0,5.7e-07]